Cogmind - Beta 13 @@@ ROGUE MODE // 2024.07.11 @ 19:33:57 Player: keygenpie Result: Destroyed by G-34 Mercenary with Small Laser Performance ------------- Evolutions (1) 500 Regions Visited (2) 400 Robots Destroyed (27) 135 Value Destroyed (703) 703 Prototype IDs (0) 0 Alien Tech Used (0) 0 Bonus (35) 35 TOTAL SCORE: 1773 Bonus ------- High Alert Combat Kills 35 Cogmind --------- Core Integrity 0/400 Matter 202/300 Energy 125/125 System Corruption 0% Temperature Cool (6) Movement Core (200) Ox3 Location -9/Materials Parts ------- > --- POWER (1) -------- Light Ion Engine > --- PROPULSION (3) --- (None) > --- UTILITY (2) ------ Heat Sink Small Storage Unit > --- WEAPON (3) ------- Datajack > --- INVENTORY (8) ---- Small Storage Unit Long-range Tractor Beam Peak State ------------ > --- POWER ------------ Deuterium Engine > --- PROPULSION ------- Wheel Wheel Compact Wheel > --- UTILITY ---------- Small Storage Unit Large Matter Pod > --- WEAPON ----------- Medium Laser Rocket Launcher Mace > --- INVENTORY -------- Light Ion Engine Light Ion Engine Deuterium Engine Compact Wheel Small Storage Unit Long-range Tractor Beam Medium Laser Datajack [Rating: 14] Favorites ----------- Power Light Ion Engine Engine Light Ion Engine Propulsion Wheel Wheel Wheel Flight Unit VTOL Module Utility Small Storage Unit Device Heat Sink Storage Small Storage Unit Weapon Mace Energy Gun Medium Laser Launcher Rocket Launcher Impact Weapon Mace Special Melee Weapon Datajack Build | -11 -10 -9 ------- Run | Yrd Mat Mat Slots Evolved 2 | . . 2 Power . | . . . Propulsion 1 | . . 1 Utility . | . . . Weapon 1 | . . 1 Parts Attached 29 | 6 11 12 Power 5 | 1 1 3 Engine 5 | 1 1 3 Core . | . . . Reactor . | . . . Propulsion 10 | 2 6 2 Treads . | . . . Leg . | . . . Wheel 8 | 2 4 2 Hover . | . . . Flight 2 | . 2 . Utility 4 | 1 1 2 Device 1 | . . 1 Storage 3 | 1 1 1 Processor . | . . . Hackware . | . . . Protection . | . . . Artifact . | . . . Weapon 10 | 2 3 5 Energy Gun 5 | 2 . 3 Energy Cannon . | . . . Ballistic Gun . | . . . Ballistic Cannon . | . . . Launcher 3 | . 2 1 Special Weapon . | . . . Impact Weapon 1 | . 1 . Slashing Weapon . | . . . Piercing Weapon . | . . . Special Melee Weapon 1 | . . 1 Unidentified Prototypes . | . . . Parts Lost 11 | . . 11 Power 2 | . . 2 Propulsion 4 | . . 4 Utility 1 | . . 1 Weapon 4 | . . 4 Highest Loss Streak 8 | . . 8 To Critical Strikes . | . . . Average Slot Usage (%) 77 | . 98 61 Engine 11 | . 14 8 Wheel 19 | . 28 12 Device 2 | . . 4 Storage 19 | . 26 15 Energy Gun 6 | . 7 6 Launcher 6 | . 10 3 Impact Weapon 10 | . 10 10 Naked Turns . | . . . Heaviest Build 25 | 12 17 25 Greatest Support 36 | 26 26 36 Greatest Overweight (x) 6 | . . 6 Average Overweight (x) . | . . 1 Largest Inventory Capacity 8 | 8 8 8 Average Capacity 7 | 6 8 8 Most Carried 8 | 4 8 8 Average Carried 5 | 2 6 5 Final Capacity 8 | 8 8 8 Final Carried 7 | 4 7 2 Class Distribution -------------------- 100% | Mutant Dominant Class ---------------- Mutant | -10/Materials Mutant | -9/Materials Resources | -11 -10 -9 ----------- Run | Yrd Mat Mat Matter Collected 516 | 106 66 344 Remotely . | . . . Salvage Created 738 | . 133 605 Parts 37 | . 12 25 Haulers Intercepted 1 | . 1 . Recyclers Shooed . | . . . Parts Field Recycled . | . . . Retrieved Matter . | . . . Parts Self-Destructed . | . . . Prevented . | . . . Kills | -11 -10 -9 ------- Run | Yrd Mat Mat Combat Hostiles Destroyed 17 | . 1 16 Melee 5 | . 1 4 Guns 8 | . . 8 AOE 3 | . . 3 Classes Destroyed 8 | . 5 3 Worker 2 | . 2 . Tunneler 1 | . 1 . Hauler 1 | . 1 . Recycler 2 | . . 2 Watcher 4 | . 3 1 Swarmer 3 | . . 3 Grunt 13 | . 1 12 Sentry 1 | . . 1 Best Kill Streak 7 | . 7 5 Combat Bots Only 4 | . 1 4 Max Kills in Single Turn 3 | . 3 2 Gunslinging 1 | . . 1 Exploded 1 | . . 1 Melee 1 | . 1 1 Uniques/NPCs Destroyed . | . . . Combat | -11 -10 -9 -------- Run | Yrd Mat Mat Hostile Shots Fired 151 | . 6 145 Missed 50 | . 2 48 Damage Taken 1316 | . 126 1190 Core 428 | . 26 402 Absorbed by Shields . | . . . Core Remaining (%) 94 | 100 89 . Volleys Fired 39 | . 4 35 Largest 2 | . 1 2 Hottest 100 | . 33 100 Shots Fired 60 | . 4 56 Gun 48 | . . 48 Cannon . | . . . Launcher 12 | . 4 8 Special . | . . . Kinetic . | . . . Thermal 48 | . . 48 Explosive 12 | . 4 8 Electromagnetic . | . . . Robot Hit Streak 5 | . 3 5 Robot Miss Streak 4 | . 1 4 Penetration Max . | . . . Secondary Targets 1 | . . 1 Max Gunslinging Chain 1 | . . 1 Shots Hit Robots 47 | . 7 40 Core Hits 34 | . 5 29 Critical Kills 1 | . . 1 Critical Parts Destroyed 6 | . 2 4 Critical Strikes 9 | . 2 7 Burn 2 | . . 2 Smash 7 | . 2 5 Melee Attacks 18 | . 5 13 Impact 17 | . 5 12 Slashing . | . . . Piercing . | . . . Sneak Attacks 1 | . 1 . Combat Hostiles . | . . . Follow-up Attacks . | . . . Damage Inflicted 1704 | . 420 1284 Guns 398 | . . 398 Cannons . | . . . Explosions 807 | . 258 549 Melee 499 | . 162 337 Ramming . | . . . Kinetic . | . . . Thermal 398 | . . 398 Explosive 807 | . 258 549 Electromagnetic . | . . . Impact 499 | . 162 337 Slashing . | . . . Piercing . | . . . Highest Corruption . | . . . Average Corruption . | . . . Corruption Purged . | . . . Corruption Blocked . | . . . Overload Shots . | . . . Overflow Damage 234 | . 111 123 Projectiles . | . . . Explosions 17 | . 17 . Melee 217 | . 94 123 Knockbacks 1 | . . 1 Impact 1 | . . 1 Kinetic . | . . . Secondary . | . . . Self-Inflicted Damage 84 | . 84 . Shots 2 | . 2 . Rammed . | . . . Targets Rammed . | . . . Kicked . | . . . Crushed . | . . . Highest Temperature 573 | . . 573 Average Temperature 197 | . . 197 Received Heat Transfer 780 | . 24 756 Effects 15 | . . 15 Shutdowns 3 | . . 3 Interference 3 | . . 3 Matter Decay 3 | . . 3 Short Circuit 1 | . . 1 Damage (minor) 1 | . . 1 Damage (major) 4 | . . 4 Siege Activations . | . . . Robots Corrupted . | . . . Combat Hostiles . | . . . Parts Fried 3 | . 1 2 Impact Corruptions 6 | . 2 4 Robots Melted . | . . . Combat Hostiles . | . . . Parts Melted 1 | . . 1 Heat Transferred 1332 | . . 1332 Parts Sabotaged . | . . . Parts Stolen . | . . . Parts Stripped . | . . . Power Chain Reactions . | . . . Alert | -11 -10 -9 ------- Run | Yrd Mat Mat Peak Influence 506 | . 199 506 Initial 83 | . . 83 Average 214 | . 85 346 Maximum Alert Level 2 | . . 2 Low Security (%) 53 | 100 100 10 Level 1 29 | . . 57 Level 2 16 | . . 31 Level 3 . | . . . Level 4 . | . . . Level 5 . | . . . High Security . | . . . Max Security . | . . . Squads Dispatched 2 | . . 2 Investigation 1 | . . 1 Extermination . | . . . Reinforcement 1 | . . 1 Assault . | . . . Garrison . | . . . Intercept . | . . . Searches Triggered . | . . . Construction Impeded . | . . . Haulers Reinforced . | . . . Active Scanning Responses . | . . . Cargo Convoy Interrupts . | . . . Stealth | -11 -10 -9 --------- Run | Yrd Mat Mat Distress Signals 6 | . 1 5 Communications Jammed . | . . . Distress Signals . | . . . Times Spotted 28 | . 3 25 Peak Tracking Total 6 | . 2 6 Tactical Retreats 3 | . . 3 Traps | -11 -10 -9 ------- Run | Yrd Mat Mat Traps Triggered . | . . . Indirectly . | . . . Trap Hack Attempts . | . . . Triggered . | . . . Disarmed . | . . . Reprogrammed . | . . . Reused . | . . . Traps Extracted . | . . . Installed . | . . . Triggered 1 | . . 1 Machines | -11 -10 -9 ---------- Run | Yrd Mat Mat Machines Disabled 6 | . 4 2 Max in Single Turn 2 | . 2 1 Machines Repaired . | . . . Machines Dismantled . | . . . Machines Sabotaged . | . . . Overloaded Fab Kills . | . . . Hacking | -11 -10 -9 --------- Run | Yrd Mat Mat Machines Accessed 4 | . 4 . Terminals 4 | . 4 . Fabricators . | . . . Repair Stations . | . . . Recycling Units . | . . . Scanalyzers . | . . . Garrison Access . | . . . Total Hacks 12 | . 12 . Successful 3 | . 3 . Failed 9 | . 9 . Catastrophic 1 | . 1 . Database Lockouts . | . . . Manual . | . . . Terminals 12 | . 12 . Fabricators . | . . . Repair Stations . | . . . Recycling Units . | . . . Scanalyzers . | . . . Garrison Access . | . . . Terminal Hacks 3 | . 3 . Emergency Access Points 1 | . 1 . Locate Traps 1 | . 1 . Zone Layout 1 | . 1 . Fabricator Hacks . | . . . Repair Station Hacks . | . . . Recycling Unit Hacks . | . . . Scanalyzer . | . . . Garrison Access Hacks . | . . . Unauthorized Hacks . | . . . Terminals . | . . . Fabricators . | . . . Repair Stations . | . . . Recycling Units . | . . . Scanalyzers . | . . . Garrison Access . | . . . Data Cores Recovered . | . . . Used . | . . . Hacking Detections 4 | . 4 . Full Trace Events . | . . . Feedback Events . | . . . Feedback Blocked . | . . . Robot Schematics Acquired . | . . . Robots Built . | . . . Authchips . | . . . Time . | . . . Total Robot Build Rating . | . . . Part Schematics Acquired . | . . . Parts Built . | . . . Authchips . | . . . Time . | . . . Total Part Build Rating . | . . . Parts Repaired . | . . . Time . | . . . Parts Recycled . | . . . Recycled Matter . | . . . Retrieved Matter . | . . . Retrieved Components . | . . . Parts Scanalyzed . | . . . Part Schematics Acquired . | . . . Parts Damaged . | . . . Bothacking | -11 -10 -9 ------------ Run | Yrd Mat Mat Used RIF Installer . | . . . Robots Hacked . | . . . Non-combat . | . . . Combat . | . . . Robot Hacks Applied . | . . . Relay Couplers Released . | . . . Fabnet Peak Effective % . | . . . Robots Rewired . | . . . Allies Hacked . | . . . Hacks Repelled . | . . . Allies | -11 -10 -9 -------- Run | Yrd Mat Mat Total Allies . | . . . Largest Group . | . . . Highest-Rated Group . | . . . Highest-Rated Ally . | . . . Total Orders . | . . . Ally Attacks . | . . . Total Damage . | . . . Kills . | . . . Allies Corrupted . | . . . Allies Melted . | . . . Intel | -11 -10 -9 ------- Run | Yrd Mat Mat Robot Analysis Total . | . . . Derelict Logs Recovered . | . . . Drone Launches . | . . . Drone Recoveries . | . . . Exploration | -11 -10 -9 ------------- Run | Yrd Mat Mat Turns Passed 757 | 60 302 395 Spaces Moved 490 | 51 288 151 Core 90 | 5 . 85 Treads . | . . . Legs . | . . . Wheels 400 | 46 288 66 Hover . | . . . Flight . | . . . Fastest Speed 50 | 50 80 80 Average Speed 108 | 86 86 159 Slowest Speed 350 | 90 90 350 Overloaded Moves . | . . . Propulsion Burnouts . | . . . Robots Hopped . | . . . Cave-ins Triggered . | . . . Exploration Rate (%) 22 | 5 48 13 Regions Visited 2 Branch Regions . Pre-discovered Areas . | . . . Known Exits Taken . | . . . Unknown Exits Taken 2 | 1 1 . Scrap Searched . | . . . Spaces Dug . | . . . Terrain Destroyed 68 | . 39 29 Melee . | . . . Projectile . | . . . AOE 68 | . 39 29 Terrain Rammed . | . . . Walls Destroyed . | . . . Machines Disabled . | . . . Actions | -11 -10 -9 --------- Run | Yrd Mat Mat Total 620 | 66 327 227 Wait 9 | . . 9 Move 488 | 50 287 151 Hop . | . . . Pick Up 27 | 10 12 5 Fast Attach . | . . . Attach 15 | 6 1 8 Detach . | . . . Swap 14 | . 10 4 Drop 10 | . 8 2 Fire 39 | . 4 35 Melee 18 | . 5 13 Ram . | . . . Kick . | . . . Crush . | . . . Escape Stasis . | . . . Rewire . | . . . Trap . | . . . Miscellaneous . | . . . Route ------- -11/Scrapyard -10/Materials (discovered 2 exits: [*Mat] / [*Min]) -9/Materials History --------- Turn | Location | Event 2 | -11/Scrapyard | Met Revision 17 12 | -11/Scrapyard | Discovered new exit (range 16) 61 | -11/Scrapyard | Entered Materials 226 | -10/Materials | Discovered new exit (range 11) 329 | -10/Materials | Build established: Mutant 337 | -10/Materials | Discovered new exit (range 13) 363 | -10/Materials | Entered another Materials area 363 | -9/Materials | Evolved 2 slots: Propulsion x1, Weapon x1 563 | -9/Materials | Lost 8 parts (1p3n1u3w) 579 | -9/Materials | Core integrity fell below 50% 734 | -9/Materials | Core integrity fell below 20% 758 | -9/Materials | Destroyed by G-34 Mercenary with Small Laser Last Messages --------------- 00724_ K-01 Serf collects debris. 00730_ G-34 Mercenary suffers critical hit (Smash). 00730_ Destroyed Aluminum Leg. 00730_ G-34 Mercenary system corrupted by crushing effect. 00730_ G-34 Mercenary destroyed. 00736_ Acquired 32 matter. 00740_ G-34 Mercenary suffers critical hit (Smash). 00740_ G-34 Mercenary destroyed. 00740_ K-01 Serf collects debris. 00741_ Mace destroyed. 00742_ R-06 Scavenger collects Heat Sink. 00743_ Acquired 36 matter. 00744_ K-01 Serf collects debris. 00745_ R-06 Scavenger collects Aluminum Leg. 00749_ R-06 Scavenger collects Heat Sink. 00750_ K-01 Serf collects debris. 00752_ Acquired 27 matter. Map ----- +----------------------------------------------------+ | ??????????????????????????????????? | | ?????????????? ?????????????????? | | ?????????????? ?????????????????? | | ?????????????? ?????????????????? | | ?????????????? #????????????????? | | ?????????????? #????????????????? | | ?????????????? #????????????????? | | ???????? """"" #????????????????? | | ???????? """"" %#????? ?????????? | | ????????? """"" #???? ""?????????? | | ?????????? #???" """ #?#????? | | ??????????? #??""[""" # #????? | | ????????????# #####+# ## #????? | | ???????????##% = %% #????? | | ??????????### % %! #????? | | ??????????# # #????? | | ??????????# # % # #?????? | | ??????????### # #???????? | | ??????????# # ! ##????????? | | ??????????### ] ##????????? | | ????????????# ###+####??? | | ????????????# # #??? | | ????????????## # #??? | | ?????????????# # [!/ #??? | | ?????????????# # [! #??? | | ?????????????# r g@[/ ]#??? | | ????????###### " " g # #??? | | ????????# ## """ ##+#####??? | | ????????# ## """ ! [ #????? | | ????????# ## #????? | | ????????# + #????? | | ????????# ## ###+######? | | ????????# ## # #? | | ????????# ## """ # ] #? | | ???########+## # #? | | ?# + # #? | | ?# """ # """ # #? | | ??? """??# """ # ! #? | | ??? "????# """ # #? | | ??????????+ # #? | | ??????????# # #? | | ??????????# """ ##########? | | ??????????# """ #?????????? | | ??????????# """ #?????????? | | ??????????# #?????????? | | ??????????# #?????????? | | ??????????###+## # ###???????? | | ???????????????# # #???????? | | ???????????????#####! [[#???????? | | ???????????????????#!!**[[#???????? | +----------------------------------------------------+ Best States ------------- Heat Dissipation 38 Energy Generation 14 Energy Capacity 275 Matter Stores 175 Matter Capacity 450 Sight Range 16 Terrain Scan Density 10 Evasion (%) 44 Item Schematics ----------------- None Robot Schematics ------------------ None Fabricated ------------ Nothing Alien Tech Used ----------------- None Achievements -------------- None Challenges ------------ None Game ------ Seed ClaymoresHeatPit Manual? 0 Play Time 00:11:13 Cumulative 14.0 hours Start 2024.07.11 @ 19:23:41 End 2024.07.11 @ 19:33:57 Sessions 1 Manual Loads 0 Difficulty Rogue Special Mode None Game No. 28 Rogue 28 Adventurer 0 Explorer 0 Win Type - Total 0 Types 0/0/0/0/0/0/0/0/0 Lore% 14 Gallery% 23 Achievement% 16 Wizard Run 0 Options --------- Layout 1 ASCII 0 Keyboard 0 Movement Arrows Keybinds 0 Fullscreen 1 Font 24/Tamsyn Map View 50x35 Zoom Use 0% Tactical HUD 1 Map Filters NONE Filters NONE Steam 1 RUN: 97451334-0afd-495d-9d71-76a01daa9ff5